[Event "Early-Titled-Tuesday-Blitz-October-17-2023"]
[Site "Chess.com"]
[Date "2023.10.17"]
[Round "1"]
[White "DeTimmerman"]
[Black "CADMartin"]
[Result "0-1"]
[WhiteElo "2702"]
[BlackElo "2458"]
[TimeControl "180+1"]
[EndTime "8:04:20 PDT"]
[Termination "CADMartin won by resignation"]

1. b4 {[%clk 0:03:00.9]} 1... Nf6 {[%clk 0:02:31.8]} 2. Bb2 {[%clk 0:03:00.1]}
2... g6 {[%clk 0:02:31.8]} 3. c4 {[%clk 0:03:00.1]} 3... Bg7 {[%clk 0:02:31.9]}
4. a4 {[%clk 0:03:00.9]} 4... O-O {[%clk 0:02:32.4]} 5. b5 {[%clk 0:03:01.5]}
5... a6 {[%clk 0:02:30.5]} 6. e3 {[%clk 0:03:01.2]} 6... axb5 {[%clk 0:02:30.7]}
7. axb5 {[%clk 0:03:02.1]} 7... Rxa1 {[%clk 0:02:31.1]} 8. Bxa1 {[%clk 0:03:03]}
8... b6 {[%clk 0:02:31.8]} 9. Nf3 {[%clk 0:03:01.9]} 9... Bb7 {[%clk 0:02:32.1]}
10. Be2 {[%clk 0:03:01.4]} 10... d6 {[%clk 0:02:32.7]} 11. O-O {[%clk
0:03:00.4]} 11... e5 {[%clk 0:02:33]} 12. d4 {[%clk 0:03:00.5]} 12... e4 {[%clk
0:02:30.9]} 13. Nfd2 {[%clk 0:03:00.3]} 13... Nbd7 {[%clk 0:02:31.4]} 14. Nc3
{[%clk 0:02:59.9]} 14... Qe7 {[%clk 0:02:31.2]} 15. Re1 {[%clk 0:02:59.5]} 15...
Ra8 {[%clk 0:02:31.6]} 16. f3 {[%clk 0:02:57.7]} 16... exf3 {[%clk 0:02:28.9]}
17. Bxf3 {[%clk 0:02:58.6]} 17... Bxf3 {[%clk 0:02:18.6]} 18. Qxf3 {[%clk
0:02:59.5]} 18... Re8 {[%clk 0:02:18.7]} 19. e4 {[%clk 0:02:50.6]} 19... h5
{[%clk 0:02:11.8]} 20. h3 {[%clk 0:02:49.3]} 20... Nf8 {[%clk 0:02:07.7]} 21.
Bb2 {[%clk 0:02:42.2]} 21... Ne6 {[%clk 0:02:06.5]} 22. Nd5 {[%clk 0:02:42]}
22... Nxd5 {[%clk 0:02:04.4]} 23. exd5 {[%clk 0:02:40.9]} 23... Ng5 {[%clk
0:02:04.1]} 24. Rxe7 {[%clk 0:02:29.6]} 24... Nxf3+ {[%clk 0:02:04.2]} 25. Nxf3
{[%clk 0:02:30.5]} 25... Rxe7 {[%clk 0:02:04.4]} 26. Kf2 {[%clk 0:02:31.4]}
26... Bh6 {[%clk 0:02:03.8]} 27. g4 {[%clk 0:02:28.3]} 27... hxg4 {[%clk
0:02:03.1]} 28. hxg4 {[%clk 0:02:29.2]} 28... Bf4 {[%clk 0:02:03.4]} 29. Ba3
{[%clk 0:02:24.6]} 29... g5 {[%clk 0:01:57.8]} 30. Bb4 {[%clk 0:02:18.1]} 30...
f6 {[%clk 0:01:53.1]} 31. Bc3 {[%clk 0:02:14.6]} 31... Re3 {[%clk 0:01:51.4]}
32. Bb4 {[%clk 0:02:10.6]} 32... Rb3 {[%clk 0:01:50]} 33. Be1 {[%clk 0:02:10.5]}
33... Rb2+ {[%clk 0:01:48]} 34. Kf1 {[%clk 0:02:08.8]} 34... Rc2 {[%clk
0:01:47.4]} 35. c5 {[%clk 0:01:48.6]} 35... dxc5 {[%clk 0:01:45.8]} 36. dxc5
{[%clk 0:01:48.4]} 36... Rxc5 {[%clk 0:01:46.3]} 37. Nd4 {[%clk 0:01:46.1]}
37... Rxd5 {[%clk 0:01:42.5]} 38. Nc6 {[%clk 0:01:46.7]} 38... Bd6 {[%clk
0:01:39.4]} 39. Bc3 {[%clk 0:01:45.5]} 39... Kf7 {[%clk 0:01:38.1]} 40. Nd8+
{[%clk 0:01:45.6]} 40... Kg6 {[%clk 0:01:36.9]} 41. Nc6 {[%clk 0:01:46.5]} 41...
Rxb5 {[%clk 0:01:35.4]} 42. Ke2 {[%clk 0:01:45.1]} 42... Rc5 {[%clk 0:01:35.4]}
0-1

[Event "Early-Titled-Tuesday-Blitz-October-17-2023"]
[Site "Chess.com"]
[Date "2023.10.17"]
[Round "1"]
[White "sterpfi"]
[Black "dcremisi"]
[Result "0-1"]
[WhiteElo "2180"]
[BlackElo "2559"]
[TimeControl "180+1"]
[EndTime "8:04:37 PDT"]
[Termination "dcremisi won by resignation"]

1. e4 {[%clk 0:03:00.9]} 1... e6 {[%clk 0:02:51.5]} 2. d4 {[%clk 0:03:00.3]}
2... d5 {[%clk 0:02:50.5]} 3. exd5 {[%clk 0:03:01.2]} 3... exd5 {[%clk 0:02:49]}
4. Nf3 {[%clk 0:03:01.8]} 4... Nc6 {[%clk 0:02:49]} 5. Bb5 {[%clk 0:03:00.1]}
5... Bd6 {[%clk 0:02:49]} 6. c4 {[%clk 0:02:59.8]} 6... dxc4 {[%clk 0:02:49]} 7.
d5 {[%clk 0:03:00.2]} 7... a6 {[%clk 0:02:49.3]} 8. Ba4 {[%clk 0:03:00.8]} 8...
b5 {[%clk 0:02:48.3]} 9. dxc6 {[%clk 0:03:01.4]} 9... bxa4 {[%clk 0:02:48.5]}
10. O-O {[%clk 0:03:00]} 10... Ne7 {[%clk 0:02:48.5]} 11. Nbd2 {[%clk
0:02:59.9]} 11... Be6 {[%clk 0:02:48.3]} 12. Qxa4 {[%clk 0:02:58.8]} 12... Rb8
{[%clk 0:02:41.2]} 13. Nxc4 {[%clk 0:02:53.2]} 13... Bxc4 {[%clk 0:02:39.6]} 14.
Qxc4 {[%clk 0:02:54.1]} 14... Rb6 {[%clk 0:02:39.7]} 15. Nd4 {[%clk 0:02:39.3]}
15... Rb4 {[%clk 0:02:39.3]} 16. Qc3 {[%clk 0:02:22.7]} 16... Rxd4 {[%clk
0:02:39]} 17. f4 {[%clk 0:01:51.1]} 17... Bb4 {[%clk 0:02:30.8]} 18. Qg3 {[%clk
0:01:33.4]} 18... O-O {[%clk 0:02:30.2]} 19. Be3 {[%clk 0:01:33]} 19... Nf5
{[%clk 0:02:29.6]} 20. Qh3 {[%clk 0:01:27.1]} 20... Nxe3 {[%clk 0:02:24.2]} 21.
Qxe3 {[%clk 0:01:28]} 21... Bc5 {[%clk 0:02:22.7]} 22. Rac1 {[%clk 0:01:23.4]}
22... Bb6 {[%clk 0:02:20.7]} 23. Kh1 {[%clk 0:01:19.5]} 23... Re8 {[%clk
0:02:20.8]} 24. Qf3 {[%clk 0:01:16.3]} 24... Rd2 {[%clk 0:02:19.3]} 25. Rcd1
{[%clk 0:01:12]} 25... Rxd1 {[%clk 0:02:18.3]} 26. Rxd1 {[%clk 0:01:12.9]} 26...
Qxd1+ {[%clk 0:02:14.4]} 27. Qxd1 {[%clk 0:01:13.8]} 27... Bf2 {[%clk
0:02:14.4]} 28. g3 {[%clk 0:00:34.1]} 28... Re1+ {[%clk 0:02:15.3]} 29. Qxe1
{[%clk 0:00:26.8]} 29... Bxe1 {[%clk 0:02:16.2]} 30. Kg2 {[%clk 0:00:27.5]}
30... Kf8 {[%clk 0:02:16.4]} 31. Kf3 {[%clk 0:00:28.1]} 31... Ke7 {[%clk
0:02:16.6]} 32. Ke4 {[%clk 0:00:28.8]} 32... Kd6 {[%clk 0:02:16.8]} 0-1

[Event "Early-Titled-Tuesday-Blitz-October-17-2023"]
[Site "Chess.com"]
[Date "2023.10.17"]
[Round "1"]
[White "KatakuriDono"]
[Black "SharapovEvgeny"]
[Result "1-0"]
[WhiteElo "2377"]
[BlackElo "2639"]
[TimeControl "180+1"]
[EndTime "8:04:40 PDT"]
[Termination "KatakuriDono won by checkmate"]

1. d4 {[%clk 0:03:00.9]} 1... Nf6 {[%clk 0:02:59.3]} 2. c4 {[%clk 0:03:01.2]}
2... e6 {[%clk 0:02:58.2]} 3. Nf3 {[%clk 0:03:01]} 3... Bb4+ {[%clk 0:02:57.6]}
4. Nbd2 {[%clk 0:03:00.7]} 4... c5 {[%clk 0:02:57.2]} 5. dxc5 {[%clk 0:02:59.7]}
5... Bxc5 {[%clk 0:02:57.3]} 6. e3 {[%clk 0:02:56.3]} 6... Nc6 {[%clk
0:02:57.1]} 7. Be2 {[%clk 0:02:56.4]} 7... O-O {[%clk 0:02:56.7]} 8. a3 {[%clk
0:02:56.7]} 8... a5 {[%clk 0:02:56.4]} 9. O-O {[%clk 0:02:56.4]} 9... d5 {[%clk
0:02:56.3]} 10. cxd5 {[%clk 0:02:55.8]} 10... exd5 {[%clk 0:02:55.9]} 11. Nb3
{[%clk 0:02:55.6]} 11... Ba7 {[%clk 0:02:55.2]} 12. Nbd4 {[%clk 0:02:55.6]}
12... Bg4 {[%clk 0:02:54.1]} 13. b3 {[%clk 0:02:53.9]} 13... Bxf3 {[%clk
0:02:50.9]} 14. Bxf3 {[%clk 0:02:49.7]} 14... Nxd4 {[%clk 0:02:48.8]} 15. exd4
{[%clk 0:02:49.9]} 15... Ne4 {[%clk 0:02:47.4]} 16. Be3 {[%clk 0:02:38.2]} 16...
Re8 {[%clk 0:02:46.7]} 17. Rc1 {[%clk 0:02:36.1]} 17... Rc8 {[%clk 0:02:44.5]}
18. Qd3 {[%clk 0:02:33]} 18... f5 {[%clk 0:02:34.3]} 19. Qb5 {[%clk 0:02:25.7]}
19... Qd6 {[%clk 0:02:09.5]} 20. Qxb7 {[%clk 0:02:13.7]} 20... Rxc1 {[%clk
0:02:05.2]} 21. Rxc1 {[%clk 0:02:12.3]} 21... Bb8 {[%clk 0:02:05]} 22. g3 {[%clk
0:02:08.7]} 22... Qxa3 {[%clk 0:01:58.4]} 23. Qxd5+ {[%clk 0:02:04.8]} 23... Kh8
{[%clk 0:01:58.1]} 24. Qxf5 {[%clk 0:01:53.4]} 24... Nf6 {[%clk 0:01:52.4]} 25.
d5 {[%clk 0:01:48.5]} 25... Rxe3 {[%clk 0:01:48.6]} 26. Rc8+ {[%clk 0:01:44.1]}
26... Re8 {[%clk 0:01:47.7]} 27. Rxe8+ {[%clk 0:01:43.8]} 27... Nxe8 {[%clk
0:01:47.7]} 28. Qc8 {[%clk 0:01:42.3]} 28... Qe7 {[%clk 0:01:42]} 29. Qxb8
{[%clk 0:01:40.6]} 29... g6 {[%clk 0:01:42]} 30. d6 {[%clk 0:01:35.9]} 30... Qd7
{[%clk 0:01:41.9]} 31. Qb6 {[%clk 0:01:25.7]} 31... Kg7 {[%clk 0:01:40.3]} 32.
Qxa5 {[%clk 0:01:18.3]} 32... Nxd6 {[%clk 0:01:39.7]} 33. Qe5+ {[%clk
0:01:17.5]} 33... Kh6 {[%clk 0:01:37.4]} 34. g4 {[%clk 0:01:11.7]} 34... g5
{[%clk 0:01:34.6]} 35. Qf6# {[%clk 0:01:09.3]} 1-0

[Event "Early-Titled-Tuesday-Blitz-October-17-2023"]
[Site "Chess.com"]
[Date "2023.10.17"]
[Round "1"]
[White "surrenderPLS"]
[Black "Beca95"]
[Result "0-1"]
[WhiteElo "2511"]
[BlackElo "2917"]
[TimeControl "180+1"]
[EndTime "8:04:41 PDT"]
[Termination "Beca95 won by resignation"]

1. e4 {[%clk 0:02:58.2]} 1... e5 {[%clk 0:02:51.5]} 2. Nf3 {[%clk 0:02:58.2]}
2... Nc6 {[%clk 0:02:52.1]} 3. Nc3 {[%clk 0:02:53.1]} 3... Nf6 {[%clk
0:02:52.1]} 4. d4 {[%clk 0:02:52.7]} 4... exd4 {[%clk 0:02:51.7]} 5. Nxd4 {[%clk
0:02:53.6]} 5... Bb4 {[%clk 0:02:50.8]} 6. Nxc6 {[%clk 0:02:52.1]} 6... bxc6
{[%clk 0:02:51.7]} 7. Bd3 {[%clk 0:02:51.1]} 7... d5 {[%clk 0:02:51.7]} 8. exd5
{[%clk 0:02:51.2]} 8... O-O {[%clk 0:02:51.9]} 9. O-O {[%clk 0:02:50.5]} 9...
cxd5 {[%clk 0:02:52]} 10. h3 {[%clk 0:02:50.5]} 10... Rb8 {[%clk 0:02:49.4]} 11.
Be3 {[%clk 0:02:46.5]} 11... a5 {[%clk 0:02:47.3]} 12. Bd4 {[%clk 0:02:07.6]}
12... c6 {[%clk 0:02:44.2]} 13. Qf3 {[%clk 0:02:02.9]} 13... Bd6 {[%clk
0:02:33.1]} 14. b3 {[%clk 0:01:56.3]} 14... Be6 {[%clk 0:02:29.3]} 15. Rfe1
{[%clk 0:01:54]} 15... c5 {[%clk 0:02:29.4]} 16. Bxf6 {[%clk 0:01:51.7]} 16...
Qxf6 {[%clk 0:02:29]} 17. Qxf6 {[%clk 0:01:42.3]} 17... gxf6 {[%clk 0:02:29.9]}
18. Rad1 {[%clk 0:01:41.6]} 18... Be5 {[%clk 0:02:29.3]} 19. Na4 {[%clk
0:01:41.5]} 19... c4 {[%clk 0:02:29.5]} 20. Bf1 {[%clk 0:01:39.2]} 20... Rfc8
{[%clk 0:02:22.1]} 21. bxc4 {[%clk 0:01:23.2]} 21... dxc4 {[%clk 0:02:20.2]} 22.
Rb1 {[%clk 0:01:23]} 22... Rb4 {[%clk 0:02:19.5]} 23. Nb6 {[%clk 0:01:20.1]}
23... Rc6 {[%clk 0:02:18.9]} 24. Rxb4 {[%clk 0:00:59.4]} 24... axb4 {[%clk
0:02:18.6]} 25. Na4 {[%clk 0:01:00.3]} 25... Bf5 {[%clk 0:02:08.4]} 26. Rb1
{[%clk 0:00:48.2]} 26... b3 {[%clk 0:02:08.2]} 27. axb3 {[%clk 0:00:39.3]} 27...
Bxc2 {[%clk 0:02:08]} 28. Rc1 {[%clk 0:00:39.1]} 28... cxb3 {[%clk 0:02:08.3]}
29. Bd3 {[%clk 0:00:36.4]} 29... Bf4 {[%clk 0:02:08.3]} 30. Bxc2 {[%clk
0:00:34.6]} 30... bxc2 {[%clk 0:02:07.4]} 0-1

[Event "Early-Titled-Tuesday-Blitz-October-17-2023"]
[Site "Chess.com"]
[Date "2023.10.17"]
[Round "1"]
[White "Lady_Nika"]
[Black "mishanick"]
[Result "0-1"]
[WhiteElo "2517"]
[BlackElo "3013"]
[TimeControl "180+1"]
[EndTime "8:04:44 PDT"]
[Termination "mishanick won by resignation"]

1. e4 {[%clk 0:03:00.9]} 1... c5 {[%clk 0:02:55.5]} 2. Nc3 {[%clk 0:03:00.8]}
2... e6 {[%clk 0:02:55.2]} 3. g3 {[%clk 0:03:01.2]} 3... Nc6 {[%clk 0:02:54.6]}
4. Bg2 {[%clk 0:03:01.6]} 4... g6 {[%clk 0:02:55.1]} 5. d3 {[%clk 0:03:02]} 5...
Bg7 {[%clk 0:02:55.7]} 6. f4 {[%clk 0:03:02.3]} 6... Nge7 {[%clk 0:02:55.5]} 7.
Nf3 {[%clk 0:03:02.8]} 7... d6 {[%clk 0:02:55.8]} 8. O-O {[%clk 0:03:03.2]} 8...
Rb8 {[%clk 0:02:56.3]} 9. Rb1 {[%clk 0:03:03.4]} 9... b5 {[%clk 0:02:56.7]} 10.
Be3 {[%clk 0:03:03.8]} 10... O-O {[%clk 0:02:48.6]} 11. Ne2 {[%clk 0:03:03.9]}
11... Qa5 {[%clk 0:02:45.6]} 12. a3 {[%clk 0:03:02.1]} 12... Rd8 {[%clk
0:02:45.7]} 13. d4 {[%clk 0:03:00.3]} 13... cxd4 {[%clk 0:02:46]} 14. Nfxd4
{[%clk 0:03:00.2]} 14... Nxd4 {[%clk 0:02:44.3]} 15. Nxd4 {[%clk 0:03:00.4]}
15... Bb7 {[%clk 0:02:40.9]} 16. Re1 {[%clk 0:02:58.9]} 16... Rbc8 {[%clk
0:02:38]} 17. c3 {[%clk 0:02:58.9]} 17... a6 {[%clk 0:02:37.4]} 18. Qd3 {[%clk
0:02:58]} 18... Qc7 {[%clk 0:02:36.8]} 19. Rbd1 {[%clk 0:02:57.5]} 19... Nc6
{[%clk 0:02:37.4]} 20. Nxc6 {[%clk 0:02:57.2]} 20... Bxc6 {[%clk 0:02:34.7]} 21.
Bd4 {[%clk 0:02:57.5]} 21... e5 {[%clk 0:02:32.5]} 22. Be3 {[%clk 0:02:57.2]}
22... exf4 {[%clk 0:02:31.2]} 23. Bxf4 {[%clk 0:02:57]} 23... Be5 {[%clk
0:02:31.7]} 24. Qf1 {[%clk 0:02:53.9]} 24... Qe7 {[%clk 0:02:27.2]} 25. Rd2
{[%clk 0:02:52.2]} 25... a5 {[%clk 0:02:25.1]} 26. Red1 {[%clk 0:02:49.7]} 26...
Rb8 {[%clk 0:02:19.1]} 27. Bxe5 {[%clk 0:02:49.4]} 27... dxe5 {[%clk 0:02:15.7]}
28. Qf2 {[%clk 0:02:45]} 28... h5 {[%clk 0:01:55]} 29. h4 {[%clk 0:02:44.3]}
29... Rxd2 {[%clk 0:01:44.1]} 30. Qxd2 {[%clk 0:02:42.7]} 30... Rc8 {[%clk
0:01:17.1]} 31. Qd6 {[%clk 0:02:39.9]} 31... Kf8 {[%clk 0:01:15.9]} 32. Bh3
{[%clk 0:02:18.1]} 32... Qxd6 {[%clk 0:01:10.1]} 33. Rxd6 {[%clk 0:02:17.6]}
33... Rc7 {[%clk 0:01:10.6]} 34. Bf1 {[%clk 0:02:11.7]} 34... b4 {[%clk
0:00:56.2]} 35. axb4 {[%clk 0:02:10.5]} 35... axb4 {[%clk 0:00:57.1]} 36. Bd3
{[%clk 0:02:10.5]} 36... bxc3 {[%clk 0:00:56.6]} 37. bxc3 {[%clk 0:02:08.4]}
37... Ke7 {[%clk 0:00:56.9]} 38. Rd5 {[%clk 0:02:05.8]} 38... Bxd5 {[%clk
0:00:55.7]} 39. exd5 {[%clk 0:02:05.5]} 39... Rxc3 {[%clk 0:00:56.6]} 0-1

[Event "Early-Titled-Tuesday-Blitz-October-17-2023"]
[Site "Chess.com"]
[Date "2023.10.17"]
[Round "1"]
[White "AnaKuchava"]
[Black "karinachess1"]
[Result "0-1"]
[WhiteElo "2259"]
[BlackElo "2592"]
[TimeControl "180+1"]
[EndTime "8:04:56 PDT"]
[Termination "karinachess1 won by resignation"]

1. d4 {[%clk 0:02:46.8]} 1... Nf6 {[%clk 0:02:58.7]} 2. Nf3 {[%clk 0:02:44.2]}
2... e6 {[%clk 0:02:58.2]} 3. c4 {[%clk 0:02:43.4]} 3... d5 {[%clk 0:02:58.3]}
4. Nc3 {[%clk 0:02:36.5]} 4... Bb4 {[%clk 0:02:57.3]} 5. Qa4+ {[%clk 0:02:35.9]}
5... Nc6 {[%clk 0:02:57.3]} 6. e3 {[%clk 0:02:32.7]} 6... O-O {[%clk 0:02:56.4]}
7. Bd3 {[%clk 0:02:30.6]} 7... a6 {[%clk 0:02:47.9]} 8. Qc2 {[%clk 0:02:26]}
8... dxc4 {[%clk 0:02:47.2]} 9. Bxc4 {[%clk 0:02:26.9]} 9... Bd6 {[%clk
0:02:38.1]} 10. O-O {[%clk 0:02:12.6]} 10... e5 {[%clk 0:02:37.8]} 11. d5 {[%clk
0:02:03.6]} 11... Ne7 {[%clk 0:02:37.2]} 12. e4 {[%clk 0:01:42.8]} 12... b5
{[%clk 0:02:29.3]} 13. Bd3 {[%clk 0:01:39.7]} 13... c6 {[%clk 0:02:29.4]} 14.
dxc6 {[%clk 0:01:33.1]} 14... Nxc6 {[%clk 0:02:30.3]} 15. a3 {[%clk 0:01:32]}
15... Bg4 {[%clk 0:02:29.2]} 16. Nd2 {[%clk 0:01:28.3]} 16... Nd4 {[%clk
0:02:23.5]} 17. Qb1 {[%clk 0:01:25.9]} 17... Rc8 {[%clk 0:02:14.6]} 18. f3
{[%clk 0:01:18.2]} 18... Be6 {[%clk 0:02:11.8]} 19. Ne2 {[%clk 0:01:09]} 19...
Bc5 {[%clk 0:01:48.9]} 20. Kh1 {[%clk 0:01:05.7]} 20... Nh5 {[%clk 0:01:35.8]}
21. b4 {[%clk 0:00:56.8]} 21... Bb6 {[%clk 0:01:28.2]} 22. Nxd4 {[%clk
0:00:52.8]} 22... Bxd4 {[%clk 0:01:27.1]} 23. Bb2 {[%clk 0:00:52.1]} 23... Bxb2
{[%clk 0:01:26]} 24. Qxb2 {[%clk 0:00:51.8]} 24... Qxd3 {[%clk 0:01:25.7]} 25.
Rfd1 {[%clk 0:00:50.1]} 25... Qc3 {[%clk 0:01:23]} 0-1

[Event "Early-Titled-Tuesday-Blitz-October-17-2023"]
[Site "Chess.com"]
[Date "2023.10.17"]
[Round "1"]
[White "Alphafischer2019"]
[Black "ljm509"]
[Result "1-0"]
[WhiteElo "2586"]
[BlackElo "2252"]
[TimeControl "180+1"]
[EndTime "8:04:57 PDT"]
[Termination "Alphafischer2019 won by resignation"]

1. Nf3 {[%clk 0:03:00.9]} 1... Nf6 {[%clk 0:02:58.2]} 2. g3 {[%clk 0:03:00.7]}
2... g6 {[%clk 0:02:58.4]} 3. Bg2 {[%clk 0:03:01.3]} 3... Bg7 {[%clk 0:02:58.8]}
4. O-O {[%clk 0:03:01.8]} 4... O-O {[%clk 0:02:59.5]} 5. c4 {[%clk 0:03:01.9]}
5... c5 {[%clk 0:02:58]} 6. d4 {[%clk 0:03:02.3]} 6... cxd4 {[%clk 0:02:57.8]}
7. Nxd4 {[%clk 0:03:03.2]} 7... Nc6 {[%clk 0:02:57.1]} 8. Nc3 {[%clk 0:03:03.7]}
8... Nxd4 {[%clk 0:02:55.1]} 9. Qxd4 {[%clk 0:03:04.6]} 9... d6 {[%clk
0:02:54.6]} 10. Qh4 {[%clk 0:02:53.9]} 10... a6 {[%clk 0:02:47.2]} 11. Rd1
{[%clk 0:02:51.9]} 11... Qa5 {[%clk 0:02:38.7]} 12. Bh6 {[%clk 0:02:47.9]} 12...
Rb8 {[%clk 0:02:34.3]} 13. Bxg7 {[%clk 0:02:47.3]} 13... Kxg7 {[%clk 0:02:33.5]}
14. Qd4 {[%clk 0:02:39.8]} 14... Qc5 {[%clk 0:02:17.7]} 15. a3 {[%clk
0:02:23.4]} 15... Qxd4 {[%clk 0:02:14.6]} 16. Rxd4 {[%clk 0:02:22.7]} 16... Be6
{[%clk 0:02:13.9]} 17. e4 {[%clk 0:02:11.9]} 17... Rfc8 {[%clk 0:02:11.6]} 18.
Nd5 {[%clk 0:02:11.5]} 18... Bxd5 {[%clk 0:02:05.2]} 19. exd5 {[%clk 0:02:01.5]}
19... b5 {[%clk 0:02:03.3]} 20. cxb5 {[%clk 0:01:56.1]} 20... Rxb5 {[%clk
0:02:00.2]} 21. b4 {[%clk 0:01:56.4]} 21... a5 {[%clk 0:01:55]} 22. Bf1 {[%clk
0:01:45.4]} 22... Rxd5 {[%clk 0:01:52.2]} 23. Rxd5 {[%clk 0:01:45.1]} 23... Nxd5
{[%clk 0:01:51.4]} 24. bxa5 {[%clk 0:01:46]} 24... Ra8 {[%clk 0:01:47.4]} 25. a6
{[%clk 0:01:42.5]} 25... Nc7 {[%clk 0:01:47.4]} 26. a4 {[%clk 0:01:39.6]} 26...
Nxa6 {[%clk 0:01:47.1]} 27. a5 {[%clk 0:01:40.5]} 27... Nc5 {[%clk 0:01:46]} 28.
a6 {[%clk 0:01:40.5]} 28... Ra7 {[%clk 0:01:45.5]} 29. f4 {[%clk 0:01:37.9]}
29... Kf6 {[%clk 0:01:35.9]} 30. Kf2 {[%clk 0:01:37.1]} 30... e6 {[%clk
0:01:34.5]} 31. Ke3 {[%clk 0:01:37.7]} 31... Ke7 {[%clk 0:01:33.9]} 32. Kd4
{[%clk 0:01:37.9]} 32... Kd7 {[%clk 0:01:34.4]} 33. Bb5+ {[%clk 0:01:28.1]}
33... Kc7 {[%clk 0:01:34.3]} 34. Kc4 {[%clk 0:01:28.8]} 34... Kb6 {[%clk
0:01:33.7]} 35. Rb1 {[%clk 0:01:27.8]} 35... Nxa6 {[%clk 0:01:30.4]} 36. Be8+
{[%clk 0:01:27.3]} 36... Ka5 {[%clk 0:01:24.9]} 37. Rb5+ {[%clk 0:01:25.5]}
37... Ka4 {[%clk 0:01:24.2]} 38. Rb7+ {[%clk 0:01:24.6]} 1-0

[Event "Early-Titled-Tuesday-Blitz-October-17-2023"]
[Site "Chess.com"]
[Date "2023.10.17"]
[Round "1"]
[White "eljanov"]
[Black "Kleyton_Lima"]
[Result "1-0"]
[WhiteElo "2872"]
[BlackElo "2503"]
[TimeControl "180+1"]
[EndTime "8:04:58 PDT"]
[Termination "eljanov won by resignation"]

1. d4 {[%clk 0:03:00.9]} 1... Nf6 {[%clk 0:02:59.1]} 2. c4 {[%clk 0:03:01.2]}
2... g6 {[%clk 0:02:58.5]} 3. Nc3 {[%clk 0:03:01.5]} 3... d5 {[%clk 0:02:58.9]}
4. cxd5 {[%clk 0:03:01.5]} 4... Nxd5 {[%clk 0:02:59.8]} 5. e4 {[%clk 0:03:02.1]}
5... Nxc3 {[%clk 0:02:58.2]} 6. bxc3 {[%clk 0:03:03]} 6... Bg7 {[%clk
0:02:58.1]} 7. Nf3 {[%clk 0:03:03.4]} 7... c5 {[%clk 0:02:57.4]} 8. h3 {[%clk
0:03:03.9]} 8... O-O {[%clk 0:02:37.5]} 9. Be2 {[%clk 0:03:03.8]} 9... b6 {[%clk
0:02:24.4]} 10. Be3 {[%clk 0:03:03.9]} 10... Bb7 {[%clk 0:02:20.3]} 11. Qd3
{[%clk 0:03:04.1]} 11... e6 {[%clk 0:02:19.8]} 12. O-O {[%clk 0:02:55.4]} 12...
cxd4 {[%clk 0:02:19.1]} 13. cxd4 {[%clk 0:02:55.4]} 13... Nc6 {[%clk 0:02:20]}
14. Rfd1 {[%clk 0:02:50.9]} 14... Qd6 {[%clk 0:02:18.4]} 15. Rac1 {[%clk
0:02:35.5]} 15... Rfc8 {[%clk 0:02:10.7]} 16. h4 {[%clk 0:02:35.5]} 16... h6
{[%clk 0:02:09.8]} 17. h5 {[%clk 0:02:30.3]} 17... g5 {[%clk 0:02:09.3]} 18. e5
{[%clk 0:02:30.7]} 18... Qd7 {[%clk 0:02:00]} 19. Nd2 {[%clk 0:02:28]} 19... Nb4
{[%clk 0:01:52.4]} 20. Qb1 {[%clk 0:02:27.7]} 20... Nd5 {[%clk 0:01:47.4]} 21.
Ne4 {[%clk 0:02:25.9]} 21... Nxe3 {[%clk 0:01:41.6]} 22. fxe3 {[%clk 0:02:25.8]}
22... Bxe4 {[%clk 0:01:37.4]} 23. Qxe4 {[%clk 0:02:25.4]} 23... Rxc1 {[%clk
0:01:27.8]} 24. Rxc1 {[%clk 0:02:25.7]} 24... Rc8 {[%clk 0:01:26.8]} 25. Rf1
{[%clk 0:02:26.3]} 25... Qd5 {[%clk 0:01:17.2]} 26. Qxd5 {[%clk 0:02:24]} 26...
exd5 {[%clk 0:01:18.1]} 27. Bf3 {[%clk 0:02:24.2]} 27... Rd8 {[%clk 0:00:52.5]}
28. Bg4 {[%clk 0:02:19]} 28... Bf8 {[%clk 0:00:34.1]} 29. Rf6 {[%clk 0:02:18]}
29... Kg7 {[%clk 0:00:29]} 30. Rc6 {[%clk 0:02:18]} 30... Kg8 {[%clk 0:00:25.9]}
31. Rc7 {[%clk 0:02:10.1]} 31... Ra8 {[%clk 0:00:25.6]} 32. Bf3 {[%clk
0:02:08.6]} 32... a5 {[%clk 0:00:20.5]} 33. Bxd5 {[%clk 0:02:07.6]} 33... b5
{[%clk 0:00:19.5]} 34. Bxa8 {[%clk 0:02:07.4]} 1-0

[Event "Early-Titled-Tuesday-Blitz-October-17-2023"]
[Site "Chess.com"]
[Date "2023.10.17"]
[Round "1"]
[White "Fore_Man"]
[Black "Kostya0705"]
[Result "0-1"]
[WhiteElo "2317"]
[BlackElo "2622"]
[TimeControl "180+1"]
[EndTime "8:05:09 PDT"]
[Termination "Kostya0705 won by checkmate"]

1. Nf3 {[%clk 0:03:00.9]} 1... Nf6 {[%clk 0:02:57.5]} 2. c4 {[%clk 0:03:01.3]}
2... e6 {[%clk 0:02:55.7]} 3. d4 {[%clk 0:03:01.6]} 3... d5 {[%clk 0:02:56.2]}
4. g3 {[%clk 0:03:01.6]} 4... Bb4+ {[%clk 0:02:55]} 5. Bd2 {[%clk 0:03:01.5]}
5... a5 {[%clk 0:02:54.2]} 6. a3 {[%clk 0:03:00.9]} 6... Be7 {[%clk 0:02:53.5]}
7. Bg2 {[%clk 0:03:00.8]} 7... O-O {[%clk 0:02:53.8]} 8. Qc2 {[%clk 0:03:00.4]}
8... c6 {[%clk 0:02:53.6]} 9. O-O {[%clk 0:03:00.2]} 9... Nbd7 {[%clk
0:02:53.1]} 10. Ne5 {[%clk 0:02:56.7]} 10... Nxe5 {[%clk 0:02:51.8]} 11. dxe5
{[%clk 0:02:57.6]} 11... Nd7 {[%clk 0:02:52.5]} 12. f4 {[%clk 0:02:56.9]} 12...
b5 {[%clk 0:02:50.4]} 13. cxd5 {[%clk 0:02:52.5]} 13... cxd5 {[%clk 0:02:50.1]}
14. e4 {[%clk 0:02:53]} 14... d4 {[%clk 0:02:50.4]} 15. a4 {[%clk 0:02:38.9]}
15... b4 {[%clk 0:02:48.2]} 16. Rd1 {[%clk 0:02:36.4]} 16... Qb6 {[%clk
0:02:41.9]} 17. Kh1 {[%clk 0:02:34.1]} 17... Ba6 {[%clk 0:02:36.9]} 18. b3
{[%clk 0:02:33.2]} 18... Rac8 {[%clk 0:02:33.7]} 19. Qb2 {[%clk 0:02:32.8]}
19... Be2 {[%clk 0:02:28.6]} 20. Re1 {[%clk 0:02:30.7]} 20... Bd3 {[%clk
0:02:28.7]} 21. Rc1 {[%clk 0:02:21.5]} 21... Qa6 {[%clk 0:02:25.1]} 22. f5
{[%clk 0:02:09.3]} 22... Rxc1+ {[%clk 0:02:20.4]} 23. Bxc1 {[%clk 0:02:08.8]}
23... Rc8 {[%clk 0:02:19.3]} 24. Nd2 {[%clk 0:01:39.7]} 24... Rc2 {[%clk
0:02:17.2]} 25. Qxd4 {[%clk 0:01:39.2]} 25... Nxe5 {[%clk 0:02:05.2]} 26. Qxe5
{[%clk 0:01:35.3]} 26... Bf6 {[%clk 0:02:03.6]} 27. Qb8+ {[%clk 0:01:06.3]}
27... Rc8 {[%clk 0:02:02.3]} 28. Qf4 {[%clk 0:01:01.7]} 28... Bxa1 {[%clk
0:01:54.6]} 29. Nf3 {[%clk 0:01:01.4]} 29... e5 {[%clk 0:01:43]} 30. Qe3 {[%clk
0:00:57.3]} 30... Bd4 {[%clk 0:01:37.3]} 31. Nxd4 {[%clk 0:00:46.6]} 31... exd4
{[%clk 0:01:38.2]} 32. Qf4 {[%clk 0:00:46.3]} 32... Qc6 {[%clk 0:01:37.4]} 33.
Bd2 {[%clk 0:00:45.8]} 33... Qc2 {[%clk 0:01:36.1]} 34. Bf3 {[%clk 0:00:44.9]}
34... Qb1+ {[%clk 0:01:34.2]} 35. Kg2 {[%clk 0:00:44.6]} 35... Qf1# {[%clk
0:01:34]} 0-1